Cogmind - Beta 11.1 @@@ ROGUE MODE // 2022.06.10 @ 23:13:58 Player: ChromeKnight Result: Destroyed by YI-UF0 with YI-UF0's Doublenader Performance ------------- Evolutions (0) 0 Regions Visited (2) 400 Robots Destroyed (32) 160 Value Destroyed (576) 576 Prototype IDs (1) 20 Alien Tech Used (0) 0 Bonus (0) 0 TOTAL SCORE: 1156 Bonus ------- None Cogmind --------- Core Integrity 0/250 Matter 291/300 Energy 82/100 System Corruption 0% Temperature Cool (0) Movement Rolling (80) Location -10/Mines Parts ------- > --- POWER (1) -------- (None) > --- PROPULSION (2) --- Wheel Wheel > --- UTILITY (2) ------ Small Storage Unit Improved Targeting Computer > --- WEAPON (2) ------- Medium Laser Particle Gun > --- INVENTORY (8) ---- Improved Flight Unit Improved Flight Unit Improved Flight Unit Improved Targeting Computer Utility Shielding Hacking Suite Particle Gun Rocket Launcher Peak State ------------ > --- POWER ------------ Light Nuclear Core > --- PROPULSION ------- Wheel Wheel > --- UTILITY ---------- Small Storage Unit Improved Targeting Computer > --- WEAPON ----------- Particle Gun Light Assault Rifle > --- INVENTORY -------- Improved Flight Unit Improved Flight Unit Improved Flight Unit Improved Targeting Computer Utility Shielding Hacking Suite Rocket Launcher [Rating: 12] Favorites ----------- Power Ion Engine Engine Ion Engine Power Core Light Nuclear Core Propulsion Light Treads Treads Light Treads Wheel Wheel Flight Unit Improved Flight Unit Utility Small Storage Unit Device Seismic Detector Storage Small Storage Unit Processor Improved Targeting Computer Weapon Assault Rifle Energy Gun Small Laser Ballistic Gun Assault Rifle Build | -11 -10 -10 ------- Run | Scr Mat Min Slots Evolved . | . . . Power . | . . . Propulsion . | . . . Utility . | . . . Weapon . | . . . Parts Attached 24 | 8 3 13 Power 4 | 1 1 2 Engine 2 | 1 . 1 Core 2 | . 1 1 Reactor . | . . . Propulsion 9 | 3 2 4 Treads 3 | 2 1 . Leg . | . . . Wheel 5 | 1 . 4 Hover . | . . . Flight 1 | . 1 . Utility 3 | 2 . 1 Device 1 | 1 . . Storage 1 | 1 . . Processor 1 | . . 1 Hackware . | . . . Protection . | . . . Artifact . | . . . Weapon 8 | 2 . 6 Energy Gun 4 | 1 . 3 Energy Cannon . | . . . Ballistic Gun 4 | 1 . 3 Ballistic Cannon . | . . . Launcher . | . . . Special Weapon . | . . . Impact Weapon . | . . . Slashing Weapon . | . . . Piercing Weapon . | . . . Special Melee Weapon . | . . . Unidentified Prototypes 1 | . 1 . Parts Lost 9 | . . 9 Power 2 | . . 2 Propulsion 3 | . . 3 Utility 1 | . . 1 Weapon 3 | . . 3 Highest Loss Streak 2 | . . 2 To Critical Strikes . | . . . Average Slot Usage (%) 85 | . 100 74 Engine 4 | . 10 1 Core 3 | . 3 3 Treads 17 | . 28 10 Wheel 6 | . . 11 Device 6 | . 14 1 Storage 14 | . 14 14 Processor 2 | . . 4 Energy Gun 10 | . 14 7 Ballistic Gun 17 | . 14 19 Naked Turns . | . . . Heaviest Build 14 | 14 14 14 Greatest Support 40 | 40 40 40 Greatest Overweight (x) 1 | . . 1 Average Overweight (x) . | . . . Largest Inventory Capacity 8 | 8 8 8 Average Capacity 7 | 7 8 8 Most Carried 8 | 1 8 8 Average Carried 4 | . 2 7 Final Capacity 8 | 8 8 8 Final Carried 8 | 1 8 8 Class Distribution -------------------- 88% | Mutant 11% | Scavenger-Mutant Dominant Class ---------------- Mutant | -10/Materials Mutant | -10/Mines Resources | -11 -10 -10 ----------- Run | Scr Mat Min Matter Collected 732 | 319 118 295 Remotely . | . . . Salvage Created 1121 | 199 419 503 Parts 66 | 17 23 26 Haulers Intercepted . | . . . Recyclers Shooed 4 | . 1 3 Parts Field Recycled . | . . . Retrieved Matter . | . . . Parts Self-Destructed . | . . . Prevented . | . . . Kills | -11 -10 -10 ------- Run | Scr Mat Min Combat Hostiles Destroyed 17 | . 6 11 Guns 16 | . 6 10 Classes Destroyed 7 | 2 4 1 Worker 1 | . 1 . Builder 1 | . . 1 Tunneler 7 | 5 . 2 Recycler 5 | 1 3 1 Operator 1 | . 1 . Swarmer 7 | . 3 4 Grunt 10 | . 3 7 Best Kill Streak 5 | 3 5 3 Combat Bots Only 3 | . 3 3 Max Kills in Single Turn 2 | 1 1 2 Gunslinging . | . . . Exploded . | . . . Melee . | . . . Uniques/NPCs Destroyed . | . . . Combat | -11 -10 -10 -------- Run | Scr Mat Min Damage Taken 1188 | . 258 930 Core 258 | . 50 208 Absorbed by Shields . | . . . Core Remaining (%) 100 | 100 . . Volleys Fired 120 | 13 37 70 Largest 2 | 2 2 2 Hottest 85 | 60 60 85 Shots Fired 218 | 26 58 134 Gun 218 | 26 58 134 Cannon . | . . . Launcher . | . . . Special . | . . . Kinetic 149 | 13 37 99 Thermal 69 | 13 21 35 Explosive . | . . . Electromagnetic . | . . . Robot Hit Streak 14 | 7 10 14 Robot Miss Streak 6 | 3 6 5 Penetration Max . | . . . Secondary Targets 5 | . 1 4 Max Gunslinging Chain 1 | . 1 1 Shots Hit Robots 139 | 17 33 89 Core Hits 55 | 7 17 31 Critical Kills 1 | . 1 . Critical Parts Destroyed 2 | . . 2 Critical Strikes 6 | . 1 5 Burn 3 | . . 3 Destroy 3 | . 1 2 Melee Attacks . | . . . Impact . | . . . Slashing . | . . . Piercing . | . . . Sneak Attacks . | . . . Combat Hostiles . | . . . Follow-up Attacks . | . . . Damage Inflicted 1642 | 204 443 995 Guns 1642 | 204 443 995 Cannons . | . . . Explosions . | . . . Melee . | . . . Ramming . | . . . Kinetic 1028 | 119 307 602 Thermal 614 | 85 136 393 Explosive . | . . . Electromagnetic . | . . . Impact . | . . . Slashing . | . . . Piercing . | . . . Highest Corruption . | . . . Average Corruption . | . . . Corruption Purged . | . . . Corruption Blocked . | . . . Overload Shots . | . . . Overflow Damage . | . . . Projectiles . | . . . Explosions . | . . . Melee . | . . . Knockbacks . | . . . Impact . | . . . Kinetic . | . . . Secondary . | . . . Self-Inflicted Damage . | . . . Shots . | . . . Rammed . | . . . Targets Rammed . | . . . Kicked . | . . . Crushed . | . . . Highest Temperature 397 | . 27 397 Average Temperature 122 | . 13 137 Received Heat Transfer 552 | . 63 489 Siege Activations . | . . . Robots Corrupted . | . . . Combat Hostiles . | . . . Parts Fried . | . . . Impact Corruptions . | . . . Robots Melted 1 | . . 1 Combat Hostiles 1 | . . 1 Parts Melted 3 | . . 3 Heat Transferred 1663 | 200 325 1138 Parts Sabotaged . | . . . Parts Stolen . | . . . Parts Stripped . | . . . Power Chain Reactions . | . . . Missiles Intercepted . | . . . Alert | -11 -10 -10 ------- Run | Scr Mat Min Peak Influence 224 | 30 224 200 Initial 19 | . 19 9 Average 86 | 11 97 97 Maximum Alert Level 1 | . 1 1 Low Security (%) 84 | 100 72 88 Level 1 15 | . 27 11 Level 2 . | . . . Level 3 . | . . . Level 4 . | . . . Level 5 . | . . . High Security . | . . . Max Security . | . . . Squads Dispatched 3 | . 3 . Investigation 2 | . 2 . Extermination . | . . . Reinforcement 1 | . 1 . Assault . | . . . Garrison . | . . . Intercept . | . . . Searches Triggered . | . . . Construction Impeded . | . . . Haulers Reinforced . | . . . Active Scanning Responses . | . . . Cargo Convoy Interrupts . | . . . Stealth | -11 -10 -10 --------- Run | Scr Mat Min Distress Signals 3 | . 3 . Communications Jammed . | . . . Distress Signals . | . . . Times Spotted 26 | . 12 14 Peak Tracking Total 5 | . 5 3 Tactical Retreats 3 | . 1 2 Traps | -11 -10 -10 ------- Run | Scr Mat Min Traps Triggered 1 | . 1 . Indirectly . | . . . Trap Hack Attempts . | . . . Triggered . | . . . Disarmed . | . . . Reprogrammed . | . . . Reused . | . . . Traps Extracted . | . . . Installed . | . . . Triggered . | . . . Machines | -11 -10 -10 ---------- Run | Scr Mat Min Machines Disabled . | . . . Max in Single Turn . | . . . Machines Sabotaged . | . . . Garrisons Compromised . | . . . Overloaded Fab Kills . | . . . Hacking | -11 -10 -10 --------- Run | Scr Mat Min Machines Accessed 1 | . 1 . Terminals 1 | . 1 . Fabricators . | . . . Repair Stations . | . . . Recycling Units . | . . . Scanalyzers . | . . . Garrison Access . | . . . Total Hacks 4 | . 4 . Successful 1 | . 1 . Failed 3 | . 3 . Catastrophic . | . . . Database Lockouts . | . . . Manual 4 | . 4 . Terminals 4 | . 4 . Fabricators . | . . . Repair Stations . | . . . Recycling Units . | . . . Scanalyzers . | . . . Garrison Access . | . . . Terminal Hacks . | . . . Fabricator Hacks . | . . . Repair Station Hacks . | . . . Recycling Unit Hacks . | . . . Scanalyzer . | . . . Garrison Access Hacks . | . . . Unauthorized Hacks 1 | . 1 . Terminals 1 | . 1 . Botnet 1 | . 1 . Fabricators . | . . . Repair Stations . | . . . Recycling Units . | . . . Scanalyzers . | . . . Garrison Access . | . . . Data Cores Recovered . | . . . Used . | . . . Hacking Detections 1 | . 1 . Full Trace Events 1 | . 1 . Feedback Events . | . . . Feedback Blocked . | . . . Robot Schematics Acquired . | . . . Robots Built . | . . . Authchips . | . . . Time . | . . . Total Robot Build Rating . | . . . Part Schematics Acquired . | . . . Parts Built . | . . . Authchips . | . . . Time . | . . . Total Part Build Rating . | . . . Parts Repaired . | . . . Time . | . . . Parts Recycled . | . . . Recycled Matter . | . . . Retrieved Matter . | . . . Retrieved Components . | . . . Parts Scanalyzed . | . . . Part Schematics Acquired . | . . . Parts Damaged . | . . . Bothacking | -11 -10 -10 ------------ Run | Scr Mat Min Used RIF Installer . | . . . Robots Hacked . | . . . Non-combat . | . . . Combat . | . . . Robot Hacks Applied . | . . . Relay Couplers Released . | . . . Fabnet Peak Effective % . | . . . Robots Rewired . | . . . Allies Hacked . | . . . Hacks Repelled . | . . . Allies | -11 -10 -10 -------- Run | Scr Mat Min Total Allies . | . . . Largest Group . | . . . Highest-Rated Group . | . . . Highest-Rated Ally . | . . . Total Orders . | . . . Ally Attacks . | . . . Total Damage . | . . . Kills . | . . . Allies Corrupted . | . . . Allies Melted . | . . . Intel | -11 -10 -10 ------- Run | Scr Mat Min Robot Analysis Total . | . . . Derelict Logs Recovered 1 | . . 1 Drone Launches . | . . . Drone Recoveries . | . . . Exploration | -11 -10 -10 ------------- Run | Scr Mat Min Turns Passed 1132 | 147 408 577 Spaces Moved 487 | 61 154 272 Core 1 | 1 . . Treads 255 | 59 154 42 Legs . | . . . Wheels 231 | 1 . 230 Hover . | . . . Flight . | . . . Fastest Speed 50 | 50 160 80 Average Speed 121 | 157 160 92 Slowest Speed 160 | 160 160 160 Overloaded Moves . | . . . Propulsion Burnouts . | . . . Robots Hopped . | . . . Cave-ins Triggered . | . . . Exploration Rate (%) 39 | 6 39 73 Regions Visited 2 Branch Regions 1 Pre-discovered Areas . | . . . Known Exits Taken . | . . . Unknown Exits Taken 2 | 1 1 . Scrap Searched 1 | . . 1 Spaces Dug . | . . . Terrain Destroyed . | . . . Melee . | . . . Projectile . | . . . AOE . | . . . Terrain Rammed . | . . . Walls Destroyed . | . . . Machines Disabled . | . . . Actions | -11 -10 -10 --------- Run | Scr Mat Min Total 812 | 83 258 471 Wait 164 | . 53 111 Move 485 | 60 153 272 Hop . | . . . Pick Up 10 | 1 8 1 Fast Attach 19 | 8 3 8 Attach 2 | . . 2 Detach . | . . . Swap 3 | . . 3 Drop 9 | 1 4 4 Fire 120 | 13 37 70 Melee . | . . . Ram . | . . . Kick . | . . . Crush . | . . . Escape Stasis . | . . . Rewire . | . . . Trap . | . . . Miscellaneous . | . . . Route ------- -11/Scrapyard -10/Materials -10/Mines History --------- Turn | Location | Event 21 | -11/Scrapyard | Discovered new exit (range 16) 148 | -11/Scrapyard | Entered Materials 312 | -10/Materials | Build established: Mutant 512 | -10/Materials | Discovered new exit (range 16) 556 | -10/Materials | Entered Mines 858 | -10/Mines | Core integrity fell below 50% 967 | -10/Mines | Received a Rocket Launcher from a helpful Derelict 974 | -10/Mines | Learned Materials terminal intel 1034 | -10/Mines | Core integrity fell below 20% 1133 | -10/Mines | Destroyed by YI-UF0 with YI-UF0's Doublenader Last Messages --------------- Ion Engine. 01036_ G-34 Mercenary overheating. 01037_ Destroyed Ion Engine. 01037_ G-34 Mercenary overheating. 01040_ G-34 Mercenary heat spikes uncontrollably. 01040_ G-34 Mercenary suffers critical hit (Burn). 01040_ G-34 Mercenary critical meltdown. 01040_ Heat Sink melted. 01043_ Acquired 18 matter. 01100_ G-47 Trooper suffers critical hit (Burn). 01101_ Lgt. Assault Rifle destroyed. 01103_ G-47 Trooper destroyed. 01125_ Searching scrap... 01125_ Found Med. Laser. 01125_ Found Wheel. 01125_ Found 11 Matter. 01127_ Acquired Med. Laser. 01128_ Acquired 10 matter. 01130_ Acquired Wheel. 01131_ Acquired 1 matter. Map ----- +----------------------------------------------------+ | | | | | | | | | | | | | | | | | | | | | | | | | | | ?????????????????????????????????????????????????? | | ?????????????????????????????????????????????????? | | ?????????????????????????????????????????????????? | | ?????????????????????????????????????????????????? | | ?????????????????????????????????????????????????? | | ?????????????????????????????????????????????????? | | ?????????????????????????????????????????????????# | | ????????????#???????????????????????????????????## | | ????????????# ????#########????????????????????# | | ???????????## ### ?????????????????????# | | ??????????# ! ?????###??????????????# | | ?????????? [% #????# ##?????????????? | | ??????????= g @##?## #?????????????# | | ??????????%* # ### ############### | | ???????????# ????# ### ## | | ???????????### ????????# ## #?# ####### ##### | | ##?????????????????????# ## #??# #?????# #???? | | #?????????????????????# ## #??# #?????# ####? | | ##????????????????????# # ##?# #?????# ## | | ????????????????????# ### ##????#### | | #???????????????????# =% #???????# ## | | #???????????????????## """ #### #?####??# #? | | #????????????????????## """ #??# ### ##?# #? | | ###???????????????????# """ #??# ## #?# #? | | ????????????????????# #??# ## #?# #? | | ?????????????????????## ##??# # #??# #? | | #???????????????????????########### #### #? | | #????????????????????????????# ## ## | | #??#??????????????????######## [ # | | ## #??????????????????# ### # | | #??????????????????# ###### #?## ## | | ####?????????????????????????# #??##### ##? | | #???####?????????????????????# ##?????## #?? | | ##??## ####????????????????### ##?????# ##? | | ????# ##??????????????## #?????## #? | | ##### ####??????????## #??????#%## | | % ! ##?????????# ##????## ### | +----------------------------------------------------+ Best States ------------- Heat Dissipation 25 Energy Generation 14 Energy Capacity 250 Matter Stores 300 Matter Capacity 300 Sight Range 16 Terrain Scan Density 10 Evasion (%) 44 Targeting Accuracy 6 Recoil Reduction 2 Item Schematics ----------------- None Robot Schematics ------------------ None Fabricated ------------ Nothing Alien Tech Used ----------------- None Achievements -------------- None Challenges ------------ None Game ------ Seed InsulatedIntegrityTendrils Manual? 0 Play Time 00:08:08 Cumulative 319.0 hours Start 2022.06.10 @ 23:08:29 End 2022.06.10 @ 23:13:58 Sessions 1 Manual Loads 0 Difficulty Rogue Special Mode None Game No. 559 Rogue 404 Adventurer 148 Explorer 7 Win Type - Total 11 Types 9/0/1/1/0/0/0/0/0 Lore% 74 Gallery% 87 Achievement% 67 Wizard Run 0 Options --------- ASCII 0 Keyboard 0 Movement Numpad Keybinds 0 Fullscreen 1 Font 18/SmallcapsGlow Map View 76x50 Tactical HUD 1 Map Filters NONE Filters NONE Steam 1 RUN: b251dbcf-2d86-4c87-9181-79b6451bb582